Cogmind - Beta 13 @@@ ROGUE MODE // 2024.04.18 @ 21:47:19 Player: Fazzonamite Result: Destroyed by H-88 Terminator with KE Penetrator Performance ------------- Evolutions (8) 4000 Regions Visited (11) 2200 Robots Destroyed (67) 335 Value Destroyed (2265) 2265 Prototype IDs (2) 40 Alien Tech Used (1) 200 Bonus (22) 22 TOTAL SCORE: 9062 Bonus ------- High Alert Combat Kills 22 Cogmind --------- Core Integrity 0/1450 Matter 39/300 Energy 99/100 System Corruption 7% Temperature Cool (0) Movement Core (50) Location -2/Research Parts ------- > --- POWER (4) -------- (None) > --- PROPULSION (6) --- (None) > --- UTILITY (10) ----- Enhanced Optical Array Improved Signal Interpreter Advanced Hacking Suite > --- WEAPON (3) ------- (None) > --- INVENTORY (5) ---- Light Ion Engine Linear Accelerator Peak State ------------ > --- POWER ------------ Micro Nuclear Core Compact Particle Reactor Compact Particle Reactor > --- PROPULSION ------- Improved Medium Treads Improved VTOL Module Nuclear Pulse Thruster Nuclear Pulse Thruster > --- UTILITY ---------- Advanced Cooling System Enhanced Optical Array Improved Signal Interpreter Seismic Detector Advanced ECM Suite Advanced Hacking Suite Advanced System Shield > --- WEAPON ----------- Fusion Bomb Launcher > --- INVENTORY -------- Antimissile System Linear Accelerator [Rating: 81] Favorites ----------- Power Light Ion Engine Engine Light Ion Engine Power Core Micro Nuclear Core Reactor Micro Antimatter Reactor Propulsion Aluminum Leg Treads Armored Treads Leg Aluminum Leg Wheel Compact Wheel Hover Unit Hover Unit Flight Unit VTOL Module Utility Medium Storage Unit Device Cryofiber Web Storage Medium Storage Unit Processor Signal Interpreter Hackware Advanced Hacking Suite Protection Improved Light Armor Plating Weapon Assault Cannon Energy Gun Small Laser Energy Cannon Beam Cannon Ballistic Gun Autogun Ballistic Cannon Assault Cannon Launcher Grenade Launcher Slashing Weapon Great Axe Build | -11 -10 -9 -8 -7 -7 -6 -5 -4 -3 -3 -2 ------- Run | Yrd Mat Mat Mat Fac Sto Fac Fac Fac Res Qua Res Slots Evolved 16 | . . 2 2 2 . 2 2 2 2 . 2 Power 3 | . . . . 1 . . 1 . 1 . . Propulsion 4 | . . 1 . . . 1 1 1 . . . Utility 8 | . . 1 1 1 . 1 . 1 1 . 2 Weapon 1 | . . . 1 . . . . . . . . Parts Attached 129 | 6 6 14 30 7 8 26 6 1 19 1 5 Power 16 | 1 1 1 3 1 . 2 1 . 4 . 2 Engine 9 | 1 1 1 2 . . 1 1 . 2 . . Core 3 | . . . 1 1 . 1 . . . . . Reactor 4 | . . . . . . . . . 2 . 2 Propulsion 40 | 2 . 6 6 4 4 8 1 . 7 . 2 Treads 2 | . . . 1 . . . . . 1 . . Leg 18 | . . 3 4 4 4 2 . . 1 . . Wheel 2 | 2 . . . . . . . . . . . Hover 4 | . . 3 . . . . . . . . 1 Flight 14 | . . . 1 . . 6 1 . 5 . 1 Utility 34 | 1 2 3 9 2 . 11 1 1 3 . 1 Device 12 | . . 1 3 1 . 5 1 . . . 1 Storage 2 | 1 1 . . . . . . . . . . Processor 8 | . 1 1 1 1 . 4 . . . . . Hackware 2 | . . . . . . . . 1 1 . . Protection 10 | . . 1 5 . . 2 . . 2 . . Artifact . | . . . . . . . . . . . . Weapon 39 | 2 3 4 12 . 4 5 3 . 5 1 . Energy Gun 13 | 2 2 1 5 . 2 . 1 . . . . Energy Cannon 3 | . . 1 . . . . 1 . 1 . . Ballistic Gun 9 | . 1 1 1 . 2 3 1 . . . . Ballistic Cannon 7 | . . . 3 . . . . . 3 1 . Launcher 6 | . . 1 3 . . 1 . . 1 . . Special Weapon . | . . . . . . . . . . . . Impact Weapon . | . . . . . . . . . . . . Slashing Weapon 1 | . . . . . . 1 . . . . . Piercing Weapon . | . . . . . . . . . . . . Special Melee Weapon . | . . . . . . . . . . . . Unidentified Prototypes 3 | . . . 1 . . . . . 1 . 1 Parts Lost 31 | . . 2 4 . 2 6 . . 12 1 4 Power 8 | . . . 1 . 1 1 . . 4 . 1 Propulsion 12 | . . 1 . . 1 2 . . 6 1 1 Utility 6 | . . 1 2 . . . . . 1 . 2 Weapon 5 | . . . 1 . . 3 . . 1 . . Highest Loss Streak 12 | . . 1 1 . 1 6 . . 12 1 4 To Critical Strikes . | . . . . . . . . . . . . Average Slot Usage (%) 79 | . 89 91 91 84 93 69 88 84 74 23 22 Engine 7 | . 14 11 5 7 1 3 11 10 7 . . Core 2 | . . . 3 1 7 4 5 5 3 . . Treads 1 | . . . 3 4 . . . . . . . Leg 8 | . . 1 17 9 22 9 . . . . . Wheel 4 | . 28 . . . . . . . . . . Hover 1 | . . 27 . . . . . . . . . Flight 5 | . . . . . . 7 29 26 22 4 2 Device 9 | . . 11 10 14 15 11 12 15 13 4 4 Storage 6 | . 14 11 9 7 7 3 . . . . . Processor 10 | . 4 6 9 14 15 18 15 10 9 9 8 Hackware 1 | . . . . . . . . 5 5 4 4 Protection 2 | . . . 5 . . 1 5 5 3 . . Energy Gun 8 | . 21 9 10 7 7 1 . . . . . Ballistic Gun 3 | . 5 4 . 7 7 2 5 5 2 . . Ballistic Cannon 4 | . . . 11 7 7 1 . . . . . Launcher 1 | . . . 3 . . . . . . . . Naked Turns . | . . . . . . . . . . . . Heaviest Build 48 | 12 17 21 31 36 36 35 24 24 48 3 12 Greatest Support 68 | 32 32 30 30 54 54 68 25 25 33 5 15 Greatest Overweight (x) 6 | 1 . 6 1 1 1 . . . 1 . . Average Overweight (x) . | . . . . . . . . . . . . Largest Inventory Capacity 10 | 8 10 10 10 10 10 10 5 5 5 5 5 Average Capacity 8 | 7 9 10 10 10 10 8 5 5 5 5 5 Most Carried 10 | 7 10 10 10 10 10 10 5 5 5 5 5 Average Carried 7 | 2 6 7 9 8 9 7 4 4 4 4 1 Final Capacity 10 | 8 10 10 10 10 10 5 5 5 5 5 5 Final Carried 10 | 2 10 8 9 9 10 5 5 5 2 5 2 Class Distribution -------------------- 35% | Mutant 17% | Scavenger-Tank 14% | Scavenger-Sprinter 10% | Skirmisher 5% | Gunner 5% | Tank 4% | Sprinter Dominant Class ---------------- Mutant | -10/Materials Mutant | -9/Materials Scavenger-Tank | -8/Materials Skirmisher | -7/Factory Skirmisher | -7/Storage Mutant | -6/Factory Scavenger-Sprinter | -5/Factory Scavenger-Sprinter | -4/Factory Scavenger-Sprinter | -3/Research Mutant | -3/Quarantine Mutant | -2/Research Resources | -11 -10 -9 -8 -7 -7 -6 -5 -4 -3 -3 -2 ----------- Run | Yrd Mat Mat Mat Fac Sto Fac Fac Fac Res Qua Res Matter Collected 1891 | 185 153 157 770 87 97 242 145 . . . 55 Remotely . | . . . . . . . . . . . . Salvage Created 2116 | . 354 226 1086 76 140 143 . . 91 . . Parts 131 | . 23 18 60 8 7 13 . . 2 . . Haulers Intercepted 2 | . . . 2 . . . . . . . . Recyclers Shooed 3 | . 1 1 . . 1 . . . . . . Parts Field Recycled . | . . . . . . . . . . . . Retrieved Matter . | . . . . . . . . . . . . Parts Self-Destructed . | . . . . . . . . . . . . Prevented . | . . . . . . . . . . . . Kills | -11 -10 -9 -8 -7 -7 -6 -5 -4 -3 -3 -2 ------- Run | Yrd Mat Mat Mat Fac Sto Fac Fac Fac Res Qua Res Combat Hostiles Destroyed 56 | . 12 7 26 2 2 5 . . 2 . . Melee 1 | . . . . . . 1 . . . . . Guns 23 | . 12 4 5 1 1 . . . . . . Cannons 20 | . . 1 17 1 1 . . . . . . AOE 12 | . . 2 4 . . 4 . . 2 . . Classes Destroyed 12 | . 2 2 6 1 1 . . . . . . Worker 4 | . . . 2 . . 2 . . . . . Hauler 2 | . . . 2 . . . . . . . . Recycler 1 | . . . 1 . . . . . . . . Mechanic 1 | . . . . . 1 . . . . . . Operator 1 | . . . 1 . . . . . . . . Watcher 2 | . . 1 1 . . . . . . . . Swarmer 16 | . 6 3 3 . . 4 . . . . . Grunt 24 | . 6 2 15 . . . . . 1 . . Duelist 1 | . . . 1 . . . . . . . . Sentry 10 | . . 2 6 . 2 . . . . . . Hunter 2 | . . . 1 . . 1 . . . . . Programmer 3 | . . . . 2 . . . . 1 . . Best Kill Streak 6 | . 4 5 5 1 2 6 . . 2 . . Combat Bots Only 5 | . 4 5 4 1 2 4 . . 2 . . Max Kills in Single Turn 6 | . 2 2 2 1 1 6 . . 2 . . Gunslinging 1 | . 1 . . . . . . . . . . Exploded 4 | . . 2 2 . . 4 . . 2 . . Melee 1 | . . . . . . 1 . . . . . Uniques/NPCs Destroyed . | . . . . . . . . . . . . Combat | -11 -10 -9 -8 -7 -7 -6 -5 -4 -3 -3 -2 -------- Run | Yrd Mat Mat Mat Fac Sto Fac Fac Fac Res Qua Res Hostile Shots Fired 654 | . 59 44 101 7 127 75 . 8 81 16 136 Missed 264 | . 19 17 31 1 62 23 . 7 28 9 67 Damage Taken 6473 | . 440 312 986 89 517 1019 . 20 1208 135 1747 Core 2572 | . 157 52 66 . 106 242 . . 382 112 1455 Absorbed by Shields 103 | . . . 103 . . . . . . . . Core Remaining (%) 81 | 100 37 87 88 . 84 71 100 100 . 62 . Volleys Fired 170 | . 51 22 64 4 8 15 1 . 4 1 . Largest 3 | . 2 2 3 3 3 3 1 . 1 1 . Hottest 165 | . 80 100 165 135 149 149 23 . 52 66 . Shots Fired 361 | . 101 44 152 12 24 22 1 . 4 1 . Gun 234 | . 101 28 64 8 16 15 1 . 1 . . Cannon 114 | . . 15 80 4 8 6 . . . 1 . Launcher 13 | . . 1 8 . . 1 . . 3 . . Special . | . . . . . . . . . . . . Kinetic 160 | . 18 18 77 8 16 20 1 . 1 1 . Thermal 188 | . 83 25 67 4 8 1 . . . . . Explosive 13 | . . 1 8 . . 1 . . 3 . . Electromagnetic . | . . . . . . . . . . . . Robot Hit Streak 13 | . 13 7 9 5 3 2 1 . 2 . . Robot Miss Streak 9 | . 9 6 4 1 5 4 . . 2 . . Penetration Max 1 | . . . 1 . . . . . . . . Secondary Targets 2 | . 2 . . . . . . . . . . Max Gunslinging Chain 1 | . 1 . . . . . . . . . . Shots Hit Robots 197 | . 52 30 79 9 11 13 1 . 2 . . Core Hits 128 | . 22 15 62 3 8 9 . . 9 . . Critical Kills . | . . . . . . . . . . . . Critical Parts Destroyed . | . . . . . . . . . . . . Critical Strikes 6 | . . . 3 . 1 2 . . . . . Burn 2 | . . . 2 . . . . . . . . Blast 2 | . . . 1 . 1 . . . . . . Sever 2 | . . . . . . 2 . . . . . Melee Attacks 8 | . . . . . . 8 . . . . . Impact . | . . . . . . . . . . . . Slashing 8 | . . . . . . 8 . . . . . Piercing . | . . . . . . . . . . . . Sneak Attacks . | . . . . . . . . . . . . Combat Hostiles . | . . . . . . . . . . . . Follow-up Attacks . | . . . . . . . . . . . . Damage Inflicted 5621 | . 581 507 2227 232 249 800 15 . 999 . 11 Guns 1754 | . 581 193 582 139 182 62 15 . . . . Cannons 1476 | . . 177 1085 93 67 54 . . . . . Explosions 2195 | . . 137 560 . . 499 . . 999 . . Melee 185 | . . . . . . 185 . . . . . Ramming 11 | . . . . . . . . . . . 11 Kinetic 1720 | . 64 105 1052 191 187 106 15 . . . . Thermal 1728 | . 517 265 615 41 62 228 . . . . . Explosive 1977 | . . 137 560 . . 281 . . 999 . . Electromagnetic . | . . . . . . . . . . . . Impact . | . . . . . . . . . . . . Slashing 185 | . . . . . . 185 . . . . . Piercing . | . . . . . . . . . . . . Highest Corruption 7 | . . . 3 2 2 . . . 4 4 7 Average Corruption 3 | . . . 3 1 2 . . . 3 4 4 Corruption Purged . | . . . . . . . . . . . . Corruption Blocked . | . . . . . . . . . . . . Effects 36 | . . . 24 1 2 . . . 1 2 6 Message Errors 6 | . . . 6 . . . . . . . . Matter Fused 10 | . . . 7 . . . . . 1 1 1 Heat Flow Errors 6 | . . . 3 . 1 . . . . . 2 Energy Discharges 7 | . . . 3 1 . . . . . 1 2 Data Loss (minor) 2 | . . . 1 . 1 . . . . . . Data Loss (major) 3 | . . . 2 . . . . . . . 1 Misfires 1 | . . . 1 . . . . . . . . Weapon Failures 1 | . . . 1 . . . . . . . . Overload Shots . | . . . . . . . . . . . . Overflow Damage 129 | . . 6 11 15 . 66 . . 31 . . Projectiles 32 | . . 6 11 15 . . . . . . . Explosions 97 | . . . . . . 66 . . 31 . . Melee . | . . . . . . . . . . . . Knockbacks 9 | . . . 8 1 . . . . . . . Impact . | . . . . . . . . . . . . Kinetic 8 | . . . 7 1 . . . . . . . Secondary 1 | . . . 1 . . . . . . . . Self-Inflicted Damage 166 | . . 1 . . . 129 . . 31 . 5 Shots 4 | . . 1 . . . 2 . . 1 . . Rammed 4 | . . . . . . . . . . . 4 Targets Rammed 4 | . . . . . . . . . . . 4 Kicked . | . . . . . . . . . . . . Crushed . | . . . . . . . . . . . . Highest Temperature 431 | . 159 365 349 2 215 . 74 . . . 431 Average Temperature 95 | . 50 113 135 2 119 . 28 . . . 200 Received Heat Transfer 1668 | . 207 111 456 . 165 . . . 132 9 588 Effects 6 | . . 1 4 . 1 . . . . . . Energy Bleed 2 | . . . 1 . 1 . . . . . . Interference 3 | . . . 3 . . . . . . . . Damage (minor) 1 | . . 1 . . . . . . . . . Siege Activations . | . . . . . . . . . . . . Robots Corrupted . | . . . . . . . . . . . . Combat Hostiles . | . . . . . . . . . . . . Parts Fried . | . . . . . . . . . . . . Impact Corruptions . | . . . . . . . . . . . . Robots Melted . | . . . . . . . . . . . . Combat Hostiles . | . . . . . . . . . . . . Parts Melted 7 | . 5 2 . . . . . . . . . Heat Transferred 3772 | . 1175 570 1641 74 137 175 . . . . . Parts Sabotaged . | . . . . . . . . . . . . Parts Stolen . | . . . . . . . . . . . . Parts Stripped . | . . . . . . . . . . . . Power Chain Reactions . | . . . . . . . . . . . . Alert | -11 -10 -9 -8 -7 -7 -6 -5 -4 -3 -3 -2 ------- Run | Yrd Mat Mat Mat Fac Sto Fac Fac Fac Res Qua Res Peak Influence 466 | . 220 237 445 274 244 262 99 138 306 84 466 Initial 202 | . . 35 100 202 124 106 54 48 72 39 41 Average 161 | . 86 128 258 224 187 102 87 57 163 67 159 Maximum Alert Level 2 | . 1 1 2 1 1 1 . . 1 . 2 Low Security (%) 59 | 100 96 69 16 . 50 91 100 100 65 100 66 Level 1 39 | . 3 30 80 100 49 8 . . 34 . 26 Level 2 1 | . . . 3 . . . . . . . 7 Level 3 . | . . . . . . . . . . . . Level 4 . | . . . . . . . . . . . . Level 5 . | . . . . . . . . . . . . High Security . | . . . . . . . . . . . . Max Security . | . . . . . . . . . . . . Squads Dispatched 14 | . 2 . 2 1 1 1 1 1 2 . 3 Investigation . | . . . . . . . . . . . . Extermination 3 | . . . . 1 . . . 1 1 . . Reinforcement 11 | . 2 . 2 . 1 1 1 . 1 . 3 Assault . | . . . . . . . . . . . . Garrison . | . . . . . . . . . . . . Intercept . | . . . . . . . . . . . . Searches Triggered . | . . . . . . . . . . . . Construction Impeded 1 | . . . . . . 1 . . . . . Haulers Reinforced . | . . . . . . . . . . . . Active Scanning Responses . | . . . . . . . . . . . . Cargo Convoy Interrupts . | . . . . . . . . . . . . Stealth | -11 -10 -9 -8 -7 -7 -6 -5 -4 -3 -3 -2 --------- Run | Yrd Mat Mat Mat Fac Sto Fac Fac Fac Res Qua Res Distress Signals 6 | . 1 . 1 . 1 2 . 1 . . . Communications Jammed . | . . . . . . . . . . . . Distress Signals . | . . . . . . . . . . . . Times Spotted 160 | . 22 9 33 2 8 14 1 10 19 6 36 Peak Tracking Total 19 | . 5 5 4 2 5 7 1 7 6 5 19 Tactical Retreats 14 | . . . . . . 4 . 1 3 . 6 Traps | -11 -10 -9 -8 -7 -7 -6 -5 -4 -3 -3 -2 ------- Run | Yrd Mat Mat Mat Fac Sto Fac Fac Fac Res Qua Res Traps Triggered 12 | . 1 . 1 . 3 . 1 . 5 . 1 Indirectly . | . . . . . . . . . . . . Trap Hack Attempts . | . . . . . . . . . . . . Triggered . | . . . . . . . . . . . . Disarmed . | . . . . . . . . . . . . Reprogrammed . | . . . . . . . . . . . . Reused . | . . . . . . . . . . . . Traps Extracted . | . . . . . . . . . . . . Installed . | . . . . . . . . . . . . Triggered . | . . . . . . . . . . . . Machines | -11 -10 -9 -8 -7 -7 -6 -5 -4 -3 -3 -2 ---------- Run | Yrd Mat Mat Mat Fac Sto Fac Fac Fac Res Qua Res Machines Disabled 6 | . . . 2 . . 2 . . 1 1 . Max in Single Turn 2 | . . . 1 . . 2 . . 1 1 . Machines Repaired . | . . . . . . . . . . . . Machines Dismantled . | . . . . . . . . . . . . Machines Sabotaged . | . . . . . . . . . . . . Overloaded Fab Kills . | . . . . . . . . . . . . Hacking | -11 -10 -9 -8 -7 -7 -6 -5 -4 -3 -3 -2 --------- Run | Yrd Mat Mat Mat Fac Sto Fac Fac Fac Res Qua Res Machines Accessed 14 | . 3 3 2 1 2 2 . . . 1 . Terminals 9 | . 1 2 1 1 2 1 . . . 1 . Fabricators 1 | . . . . . . 1 . . . . . Repair Stations . | . . . . . . . . . . . . Recycling Units 3 | . 2 1 . . . . . . . . . Scanalyzers 1 | . . . 1 . . . . . . . . Garrison Access . | . . . . . . . . . . . . Total Hacks 21 | . 4 3 5 1 3 4 . . . 1 . Successful 14 | . 2 2 5 1 1 2 . . . 1 . Failed 7 | . 2 1 . . 2 2 . . . . . Catastrophic 2 | . 1 . . . 1 . . . . . . Database Lockouts . | . . . . . . . . . . . . Manual 1 | . . . . . . . . . . . 1 Terminals 13 | . 1 2 3 1 3 2 . . . 1 . Fabricators 2 | . . . . . . 2 . . . . . Repair Stations . | . . . . . . . . . . . . Recycling Units 4 | . 3 1 . . . . . . . . . Scanalyzers 2 | . . . 2 . . . . . . . . Garrison Access . | . . . . . . . . . . . . Terminal Hacks 8 | . . 1 3 1 1 1 . . . 1 . Record 5 | . . . 2 1 . 1 . . . 1 . Open Door 1 | . . . . . 1 . . . . . . Maintenance Status 1 | . . . 1 . . . . . . . . Zone Layout 1 | . . 1 . . . . . . . . . Fabricator Hacks 1 | . . . . . . 1 . . . . . Load Schematic 1 | . . . . . . 1 . . . . . Repair Station Hacks . | . . . . . . . . . . . . Recycling Unit Hacks 3 | . 2 1 . . . . . . . . . Report Inventory 3 | . 2 1 . . . . . . . . . Scanalyzer 2 | . . . 2 . . . . . . . . Insert Component 1 | . . . 1 . . . . . . . . Analyze 1 | . . . 1 . . . . . . . . Garrison Access Hacks . | . . . . . . . . . . . . Unauthorized Hacks . | . . . . . . . . . . . . Terminals . | . . . . . . . . . . . . Fabricators . | . . . . . . . . . . . . Repair Stations . | . . . . . . . . . . . . Recycling Units . | . . . . . . . . . . . . Scanalyzers . | . . . . . . . . . . . . Garrison Access . | . . . . . . . . . . . . Data Cores Recovered 1 | . . . 1 . . . . . . . . Used . | . . . . . . . . . . . . Hacking Detections 7 | . 2 1 1 1 1 1 . . . . . Full Trace Events . | . . . . . . . . . . . . Feedback Events . | . . . . . . . . . . . . Feedback Blocked . | . . . . . . . . . . . . Robot Schematics Acquired . | . . . . . . . . . . . . Robots Built . | . . . . . . . . . . . . Authchips . | . . . . . . . . . . . . Time . | . . . . . . . . . . . . Total Robot Build Rating . | . . . . . . . . . . . . Part Schematics Acquired 1 | . . . 1 . . . . . . . . Parts Built . | . . . . . . . . . . . . Authchips . | . . . . . . . . . . . . Time . | . . . . . . . . . . . . Total Part Build Rating . | . . . . . . . . . . . . Parts Repaired . | . . . . . . . . . . . . Time . | . . . . . . . . . . . . Parts Recycled . | . . . . . . . . . . . . Recycled Matter . | . . . . . . . . . . . . Retrieved Matter . | . . . . . . . . . . . . Retrieved Components . | . . . . . . . . . . . . Parts Scanalyzed 1 | . . . 1 . . . . . . . . Part Schematics Acquired 1 | . . . 1 . . . . . . . . Parts Damaged . | . . . . . . . . . . . . Bothacking | -11 -10 -9 -8 -7 -7 -6 -5 -4 -3 -3 -2 ------------ Run | Yrd Mat Mat Mat Fac Sto Fac Fac Fac Res Qua Res Used RIF Installer . | . . . . . . . . . . . . Robots Hacked . | . . . . . . . . . . . . Non-combat . | . . . . . . . . . . . . Combat . | . . . . . . . . . . . . Robot Hacks Applied . | . . . . . . . . . . . . Relay Couplers Released . | . . . . . . . . . . . . Fabnet Peak Effective % . | . . . . . . . . . . . . Robots Rewired . | . . . . . . . . . . . . Allies Hacked . | . . . . . . . . . . . . Hacks Repelled . | . . . . . . . . . . . . Allies | -11 -10 -9 -8 -7 -7 -6 -5 -4 -3 -3 -2 -------- Run | Yrd Mat Mat Mat Fac Sto Fac Fac Fac Res Qua Res Total Allies . | . . . . . . . . . . . . Largest Group . | . . . . . . . . . . . . Highest-Rated Group . | . . . . . . . . . . . . Highest-Rated Ally . | . . . . . . . . . . . . Total Orders . | . . . . . . . . . . . . Ally Attacks . | . . . . . . . . . . . . Total Damage . | . . . . . . . . . . . . Kills . | . . . . . . . . . . . . Allies Corrupted . | . . . . . . . . . . . . Allies Melted . | . . . . . . . . . . . . Intel | -11 -10 -9 -8 -7 -7 -6 -5 -4 -3 -3 -2 ------- Run | Yrd Mat Mat Mat Fac Sto Fac Fac Fac Res Qua Res Robot Analysis Total . | . . . . . . . . . . . . Derelict Logs Recovered . | . . . . . . . . . . . . Drone Launches 2 | . . . . . . 2 . . . . . Drone Recoveries 2 | . . . . . . 2 . . . . . Exploration | -11 -10 -9 -8 -7 -7 -6 -5 -4 -3 -3 -2 ------------- Run | Yrd Mat Mat Mat Fac Sto Fac Fac Fac Res Qua Res Turns Passed 5493 | 50 870 268 1592 385 193 802 174 293 434 133 299 Spaces Moved 5452 | 33 643 192 795 221 125 1031 272 342 791 342 665 Core 199 | 14 . 7 . . . . . . . 5 173 Treads 205 | . . . 129 67 . . . . 9 . . Legs 1217 | . . 12 666 154 125 260 . . . . . Wheels 662 | 19 643 . . . . . . . . . . Hover 174 | . . 173 . . . . . . . . 1 Flight 2995 | . . . . . . 771 272 342 782 337 491 Fastest Speed 22 | 50 100 52 120 120 120 27 25 25 22 35 40 Average Speed 73 | 92 100 93 164 161 120 53 25 25 26 35 42 Slowest Speed 350 | 100 100 350 250 250 190 120 25 25 240 50 70 Overloaded Moves . | . . . . . . . . . . . . Propulsion Burnouts . | . . . . . . . . . . . . Robots Hopped 48 | . . . . . . 4 2 2 22 5 13 Cave-ins Triggered . | . . . . . . . . . . . . Exploration Rate (%) 30 | 3 91 27 58 8 30 30 8 10 28 41 30 Regions Visited 11 Branch Regions 2 Pre-discovered Areas . | . . . . . . . . . . . . Known Exits Taken 9 | . . 1 1 1 1 1 1 1 1 1 . Unknown Exits Taken 2 | 1 1 . . . . . . . . . . Scrap Searched . | . . . . . . . . . . . . Spaces Dug . | . . . . . . . . . . . . Terrain Destroyed 149 | . . 9 75 . 3 41 . . 21 . . Melee . | . . . . . . . . . . . . Projectile 17 | . . . 14 . 3 . . . . . . AOE 132 | . . 9 61 . . 41 . . 21 . . Terrain Rammed . | . . . . . . . . . . . . Walls Destroyed . | . . . . . . . . . . . . Machines Disabled . | . . . . . . . . . . . . Actions | -11 -10 -9 -8 -7 -7 -6 -5 -4 -3 -3 -2 --------- Run | Yrd Mat Mat Mat Fac Sto Fac Fac Fac Res Qua Res Total 6583 | 52 775 242 946 242 148 1254 375 547 985 349 668 Wait 670 | 6 53 . 17 . 3 147 73 204 159 6 2 Move 5356 | 32 642 191 794 220 124 1022 268 337 754 332 640 Hop 37 | . . . . . . 4 1 2 14 4 12 Pick Up 88 | 8 16 8 20 6 2 12 3 2 5 3 3 Fast Attach 39 | . . . 7 1 8 9 3 . 11 . . Attach 71 | 6 5 11 10 6 . 15 3 1 8 1 5 Detach 11 | . . 1 . 2 . 2 1 . 4 1 . Swap 19 | . 1 3 13 . . 2 . . . . . Drop 74 | . 7 6 21 3 3 18 4 1 8 1 2 Fire 170 | . 51 22 64 4 8 15 1 . 4 1 . Melee 8 | . . . . . . 8 . . . . . Ram 4 | . . . . . . . . . . . 4 Kick . | . . . . . . . . . . . . Crush . | . . . . . . . . . . . . Escape Stasis 36 | . . . . . . . 18 . 18 . . Rewire . | . . . . . . . . . . . . Trap . | . . . . . . . . . . . . Miscellaneous . | . . . . . . . . . . . . Route ------- -11/Scrapyard -10/Materials (discovered 3 exits: *Mat x2 / [*Min]) -9/Materials -8/Materials -7/Factory -7/Storage -6/Factory (discovered 2 exits: *Fac / *Low) -5/Factory -4/Factory -3/Research -3/Quarantine -2/Research History --------- Turn | Location | Event 16 | -11/Scrapyard | Discovered new exit (range 15) 51 | -11/Scrapyard | Entered Materials 333 | -10/Materials | Build established: Mutant 507 | -10/Materials | Discovered new exit (range 8) 612 | -10/Materials | Discovered new exit (range 9) 795 | -10/Materials | Core integrity fell below 50% 913 | -10/Materials | Discovered new exit (range 5) 921 | -10/Materials | Entered another Materials area 921 | -9/Materials | Evolved 2 slots: Propulsion x1, Utility x1 1072 | -9/Materials | Discovered new exit (range 11) 1187 | -9/Materials | Identified exit to Materials 1189 | -9/Materials | Entered another Materials area 1189 | -8/Materials | Evolved 2 slots: Utility x1, Weapon x1 1478 | -8/Materials | Build established: Scavenger-Tank 2748 | -8/Materials | Discovered new exit (range 15) 2779 | -8/Materials | Identified exit to Factory 2781 | -8/Materials | Entered Factory 2781 | -7/Factory | Evolved 2 slots: Power x1, Utility x1 3157 | -7/Factory | Discovered new exit (range 7) 3164 | -7/Factory | Identified exit to Storage 3166 | -7/Factory | Entered Storage 3341 | -7/Storage | Discovered new exit (range 16) 3358 | -7/Storage | Identified exit to Factory 3359 | -7/Storage | Entered Factory 3359 | -6/Factory | Evolved 2 slots: Propulsion x1, Utility x1 3531 | -6/Factory | Build established: Skirmisher 3641 | -6/Factory | Lost 6 parts (1p2n3w) 3752 | -6/Factory | Discovered new exit (range 5) 3758 | -6/Factory | Identified exit to Lower Caves 3832 | -6/Factory | Build established: Mutant 4159 | -6/Factory | Discovered new exit (range 7) 4161 | -6/Factory | Identified exit to Factory 4161 | -6/Factory | Entered another Factory area 4161 | -5/Factory | Evolved 2 slots: Power x1, Propulsion x1 4292 | -5/Factory | Discovered new exit (range 22) 4335 | -5/Factory | Identified exit to Factory 4335 | -5/Factory | Entered another Factory area 4335 | -4/Factory | Evolved 2 slots: Propulsion x1, Utility x1 4394 | -4/Factory | Build established: Scavenger-Sprinter 4510 | -4/Factory | Discovered new exit (range 21) 4618 | -4/Factory | Spotted B-86 Titan 4628 | -4/Factory | Identified exit to Research 4628 | -4/Factory | Entered Research 4628 | -3/Research | Evolved 2 slots: Power x1, Utility x1 4933 | -3/Research | Found Fusion Bomb Launcher 5056 | -3/Research | Spotted B-86 Titan 5058 | -3/Research | Discovered new exit (range 13) 5058 | -3/Research | Spotted B-90 Cyclops 5061 | -3/Research | Identified exit to Quarantine 5062 | -3/Research | Entered Quarantine 5081 | -3/Quarantine | Found Alien Reactor 5092 | -3/Quarantine | Lost 12 parts (4p6n1u1w) 5192 | -3/Quarantine | Discovered new exit (range 8) 5195 | -3/Quarantine | Identified exit to Research 5195 | -3/Quarantine | Entered Research 5195 | -2/Research | Evolved 2 slots: Utility x2 5202 | -2/Research | Identified Matter Drive 5371 | -2/Research | Build established: Mutant 5406 | -2/Research | Spotted B-90 Cyclops 5435 | -2/Research | Spotted B-90 Cyclops 5438 | -2/Research | Lost 4 parts (1p1n2u) 5445 | -2/Research | Core integrity fell below 50% 5451 | -2/Research | Core integrity fell below 20% 5494 | -2/Research | Destroyed by H-88 Terminator with KE Penetrator Last Messages --------------- Antimatter Diverter explodes. K-01 Serf destroyed. K-01 Serf collects debris. Slug penetrates Subatomic Condenser. Penetrated by Slug. R-10 Processor collects Structural Scanner. O-24 Administrator: "IFF HANDSHAKE FAILED. SECURING TERMINAL." Slug penetrates Wall. Penetrated by Slug. System corrupted: Energy discharge (-26). Slammed into T-07 Excavator. Destabilizing: System interference. Imp. Signal Interpreter temporarily disabled. ALERT: Hostiles spotted, dispatching reinforcements to Terminal R009. Slug penetrates Wall. Penetrated by Slug. Slammed into O-32 Director. Slug penetrates Wall. Map ----- +----------------------------------------------------+ | ?????????????????????????????????????????????????? | | ?????????????????????????????????????????????????? | | ?????????????????????????????????????????????????? | | ?????????????????????????????????????????????????? | | ?????????????????????????????????????????????????? | | ?????????????????????????????????????????????????? | | ?????????????????????????????????????????????????? | | ?????????????????????????????????????????????????? | | ?????????????????????????????????????????????????? | | ?????????????????????????????????????????????????? | | ???????????????????????????H?????????????????????? | | ?????????????????????????????????????????????????? | | ?????????????????????????????????????????????????? | | ?????????????????????????????????????????????????? | | ?????????????????????????????????????????????????? | | ?????????????????????????????????????????????????? | | ?????????????????????????????????????????????????? | | ???????????????########??????????????????????????? | | ???????????????# #??????????????????????????? | | #??????????????# [ ####???????????????????????? | | #??????????????+ ????????????????????????? | | #??????????????# T ????????????????????????? | | #??????????????? ##/#######?????????????????? | | #??????????????? # o #?????????????????? | | #???????????????# ## #?????????????????? | | #???????????????# ## @ #?????????????????? | | #?############### ## #?????????????????? | | #?# ## #?????????????????? | | #?# ## #??######?????????? | | #?# ## #??# !! #?????????? | | #?# ## #??# !! #?????????? | | #?# ## #??# #?????????? | | #?# ###A########## ]#?????????? | | ### h + #?????????? | | ########+######## # #?????????? | | #?????? ??????# # * #?????????? | | #?????? ??????# # #?????????? | | ? * ?????# # #?????????? | | ###### ?????# ######?????????? | | #????# ????# #? #?????????? | | #????########???# # !!#?????????? | | #????# = ## # ! #?????????? | | #????# / + #?????????? | | +????# """"" ########## #?????????? | | ####????? ""T"" ??????????? #?????????? | | ########???????# ?????????????####?????????? | | #??????????????# ????????????????????????????? | | #??????????????# ?????????????????????????????? | | +??????????????# ??????????????????????????????? | | #??????????????##????????????????????????????????? | +----------------------------------------------------+ Best States ------------- Heat Dissipation 77 Energy Generation 51 Energy Capacity 325 Matter Stores 300 Matter Capacity 300 Sight Range 22 Terrain Scan Density 10 ECM Strength 2 Base Temperature (-) 100 Armor Coverage 150 Evasion (%) 65 Targeting Accuracy 8 Core Analysis 6 Recoil Reduction 1 Offensive Hacking 14 Defensive Hacking 14 Item Schematics ----------------- Imp. VTOL Module | -8/Materials | Scanalyzed Robot Schematics ------------------ None Fabricated ------------ Nothing Alien Tech Used ----------------- Matter Drive Achievements -------------- Alien Tech Can't Catch Me Universal Adapter Challenges ------------ None Game ------ Seed ChromaticScrapPurifier Manual? 0 Play Time 03:04:18 Cumulative 18.8 hours Start 2024.04.18 @ 18:22:25 End 2024.04.18 @ 21:47:19 Sessions 1 Manual Loads 0 Difficulty Rogue Special Mode None Game No. 25 Rogue 25 Adventurer 0 Explorer 0 Win Type - Total 0 Types 0/0/0/0/0/0/0/0/0 Lore% 9 Gallery% 20 Achievement% 15 Wizard Run 0 Options --------- Layout 1 ASCII 0 Keyboard 0 Movement Mouse Keybinds 0 Fullscreen 1 Font 48/Smallcaps Map View 50x35 Zoom Use 0% Tactical HUD 0 Map Filters NONE Filters NONE Steam 1 RUN: 09341f2a-ae64-416d-88df-8e333a0aab01